[Event "NOR-ch Clubs 2017"]
[Site "Kristiansund"]
[Date "2017.10.20"]
[Round "1"]
[White "Sjoberg, Isak"]
[Black "Tevasvoll, Svein"]
[Result "1-0"]
[ECO "B00"]
[WhiteElo "2067"]
[BlackElo "1515"]
[Annotator "NA RC"]
[PlyCount "75"]
[EventDate "2017.??.??"]
[EventType "team-tourn"]
[EventCountry "NOR"]
[SourceTitle "playchess.com"]
[Source "ChessBase"]
[SourceQuality "1"]
[TimeControl "40/5400:1800"]

{[%evp 9,75,-11,10,10,10,9,8,-14,6,0,0,-8,4,32767,32767,32767,32767,32767,32767,0,32767,32767,152,115,132,32767,147,145,420,405,563,555,545,32767,561,579,618,629,603,589,578,625,642,664,643,679,671,664,681,707,736,748,737,32767,32767,32767,32767,829,1812,32767,32767,32767,5369,29973,29971,29986,29986,29986]} 1. e4 {[%emt 0:00:03]} Nc6 {[%emt 0:01:01]} 2. Nf3 {[%emt 0:00:17]} d6 {[%emt 0:00:27]} 3. d4 {[%emt 0:01:44]} e5 {[%emt 0:03:46]} 4. Bb5 {[%emt 0:04:26]} Bd7 {[%emt 0:00:18]} 5. d5 {[%emt 0:00:42]} Nce7 {[%emt 0:00:22]} 6. Bd3 {[%emt 0:00:46] C62: Spanische Partie (Steinitz-Verteidigung)} (6. Bxd7+ Qxd7 7. O-O h6 8. c4 f5 9. Nc3 Nf6 10. exf5 Nxf5 11. Be3 Be7 12. Qd3 O-O 13. Nd2 Nh7 14. Nde4 Bg5 15. Bxg5 Nxg5 16. Nxg5 hxg5 {1-0 (39) Balogh,C (2664)-Stocek,J (2606) Plovdiv 2012}) 6... Ng6 {[%emt 0:01:18]} 7. Nc3 {[%emt 0:06:41]} a6 $146 {[%emt 0:00:35]} ({Vorgänger:} 7... h6 8. Ne2 Be7 9. Ng3 Nf6 10. Be3 Ng4 11. Bd2 Nf6 12. h3 O-O 13. Qc1 Kh7 {1-0 (35) Barbosa,F (1992)-Silva,I (1801) Matosinhos 2004}) 8. a4 {[%emt 0:03:57]} Be7 {[%emt 0:00:24]} 9. Ne2 {[%emt 0:02:00]} Bg4 {[%emt 0:04:43]} 10. Be3 {[%emt 0:15:12]} Nf6 {[%emt 0:06:31]} 11. h4 {[%emt 0:05:14]} h5 {[%emt 0:06:08]} 12. Ng5 {[%emt 0:01:46]} Nh7 {[%emt 0:10:04]} 13. f3 {[%emt 0:04:13]} Bd7 {[%emt 0:02:47]} 14. Nxh7 {[%emt 0:00:54]} Rxh7 {[%emt 0:00:20]} 15. g3 {[%emt 0:00:05]} c5 {[%emt 0:02:06]} 16. dxc6 {[%emt 0:02:02]} Bxc6 {[%emt 0:00:32]} 17. Nc3 {[%emt 0:01:15]} Qa5 {[%emt 0:05:31]} 18. Rb1 {[%emt 0:01:26]} d5 $2 {[%emt 0:03:35]} (18... Qb4 $16 19. Kf1 Kf8) 19. exd5 {[%emt 0:00:21]} Bxd5 {[%emt 0:00:51]} 20. Bxg6 $1 {[%emt 0:00:08]} fxg6 {[%emt 0:01:14]} 21. Qxd5 {[%emt 0:00:10]} Qxd5 {[%emt 0:01:06]} 22. Nxd5 {[%emt 0:00:05]} Kf7 {[%emt 0:03:41]} 23. Nxe7 {[%emt 0:00:11]} Kxe7 {[%emt 0:00:16]} 24. Ke2 {[%emt 0:00:04]} Rhh8 {[%emt 0:00:57]} 25. Rhd1 {[%emt 0:00:08]} Rac8 {[%emt 0:02:37]} 26. Rd2 {[%emt 0:00:13]} Rhe8 {[%emt 0:02:28]} 27. Rbd1 {[%emt 0:00:36]} Kf7 {[%emt 0:01:14]} 28. Rd7+ {[%emt 0:00:05]} Re7 {[%emt 0:00:44]} 29. c3 {[%emt 0:00:08]} Rc7 {[%emt 0:01:17]} 30. Rxc7 {[%emt 0:00:24]} Rxc7 {[%emt 0:00:11]} 31. Bb6 {[%emt 0:00:10]} Re7 {[%emt 0:01:08]} 32. Ke3 {[%emt 0:00:11]} Ke6 {[%emt 0:00:55]} 33. b4 {[%emt 0:00:27]} Rd7 {[%emt 0:01:26]} 34. Rxd7 {[%emt 0:00:16]} Kxd7 {[%emt 0:00:05]} 35. Ke4 {[%emt 0:00:04]} Ke6 $18 {[%emt 0:00:31]} 36. c4 {[%emt 0:00:09]} Kd6 {[%emt 0:02:47]} 37. b5 {[%emt 0:00:12]} axb5 {[%emt 0:00:31]} 38. cxb5 {[%emt 0:00:15] Kd5+} 1-0

[Event "NOR-ch Clubs 2017"]
[Site "Kristiansund"]
[Date "2017.10.20"]
[Round "1"]
[White "Wister, Tom R"]
[Black "Haug, Johannes"]
[Result "0-1"]
[ECO "E27"]
[WhiteElo "1864"]
[BlackElo "2379"]
[Annotator "RC"]
[PlyCount "78"]
[EventDate "2017.??.??"]
[EventType "team-tourn"]
[EventCountry "NOR"]
[SourceTitle "playchess.com"]
[Source "ChessBase"]
[SourceQuality "1"]
[TimeControl "40/5400:1800"]

1. d4 {[%emt 0:00:03]} Nf6 {[%emt 0:00:05]} 2. c4 {[%emt 0:00:08]} e6 {[%emt 0:00:04]} 3. Nc3 {[%emt 0:00:05]} Bb4 {[%emt 0:00:04]} 4. a3 {[%emt 0:00:19]} Bxc3+ {[%emt 0:00:11]} 5. bxc3 {[%emt 0:00:10]} O-O {[%emt 0:00:34]} 6. f3 {[%emt 0:00:31]} d6 {[%emt 0:00:38]} 7. e4 {[%emt 0:00:36]} Nc6 {[%emt 0:02:27]} 8. Bd3 {[%emt 0:00:32]} e5 {[%emt 0:01:12]} 9. Ne2 {[%emt 0:00:27]} b6 {[%emt 0:05:12]} 10. d5 {[%emt 0:02:27]} Na5 {[%emt 0:02:05]} 11. Ng3 {[%emt 0:01:00]} Nd7 {[%emt 0:03:47]} 12. Be3 {[%emt 0:02:28]} Ba6 {[%emt 0:02:52]} 13. Qe2 {[%emt 0:01:59]} Nb3 {[%emt 0:08:36]} 14. Rb1 {[%emt 0:01:49]} Ndc5 {[%emt 0:00:21]} 15. Bxc5 {[%emt 0:04:00]} Nxc5 {[%emt 0:00:10]} 16. Bc2 {[%emt 0:00:08]} g6 {[%emt 0:04:13]} 17. O-O {[%emt 0:02:25]} Qg5 {[%emt 0:00:28]} 18. Rb4 {[%emt 0:07:27]} Rae8 {[%emt 0:01:39]} 19. Qf2 {[%emt 0:01:17]} Bc8 {[%emt 0:00:49]} 20. Rbb1 {[%emt 0:15:25]} a5 {[%emt 0:03:30]} 21. Rfe1 {[%emt 0:02:36]} Ba6 {[%emt 0:03:43]} 22. Qe2 {[%emt 0:00:26]} Kh8 {[%emt 0:06:00]} 23. Nf1 {[%emt 0:01:17]} f5 {[%emt 0:00:35]} 24. exf5 {[%emt 0:00:17]} gxf5 {[%emt 0:00:06]} 25. Nd2 {[%emt 0:00:24]} Rf6 {[%emt 0:03:26]} 26. Rf1 {[%emt 0:01:15]} Qg7 {[%emt 0:03:55]} 27. Rf2 {[%emt 0:04:43]} f4 {[%emt 0:04:41]} 28. Ne4 {[%emt 0:00:58]} Nxe4 {[%emt 0:00:06]} 29. Bxe4 {[%emt 0:04:55]} Rh6 {[%emt 0:01:03]} 30. Bf5 {[%emt 0:03:20]} Bc8 {[%emt 0:03:01]} 31. Qe4 {[%emt 0:04:14]} Qg5 {[%emt 0:00:59]} 32. Bxc8 {[%emt 0:00:33]} Rxc8 {[%emt 0:00:05]} 33. Rbb2 {[%emt 0:04:11]} Rg8 {[%emt 0:01:09]} 34. Kh1 {[%emt 0:02:42]} Qg3 {[%emt 0:00:19]} 35. Kg1 {[%emt 0:01:34]} Rxh2 {[%emt 0:01:23]} 36. Kf1 {[%emt 0:03:21]} Rh1+ {[%emt 0:02:27]} 37. Ke2 {[%emt 0:00:04]} Qxg2 {[%emt 0:00:40]} 38. Qf5 {[%emt 0:06:44]} Qg6 {[%emt 0:01:01]} 39. Qd7 {[%emt 0:01:47]} e4 {[%emt 0:00:17]} 0-1

[Event "NOR-ch Clubs 2017"]
[Site "Kristiansund"]
[Date "2017.10.20"]
[Round "1"]
[White "Hauan, Tore"]
[Black "Svensen, Tarjei"]
[Result "0-1"]
[ECO "D18"]
[WhiteElo "1623"]
[BlackElo "2057"]
[Annotator "NA RC"]
[PlyCount "70"]
[EventDate "2017.??.??"]
[EventType "team-tourn"]
[EventCountry "NOR"]
[SourceTitle "playchess.com"]
[Source "ChessBase"]
[SourceQuality "1"]
[TimeControl "40/5400:1800"]

{[%evp 9,65,17,32767,11,32767,32767,32767,8,32,0,12,12,17,0,4,0,0,-2,0,7,0,0,14,12,22,0,0,-55,-50,-44,32767,32767,32767,-49,-48,32767,32767,-73,-97,-68,-127,-241,-234,-726,-747,-691,0,-386,-383,-385,-295,-781,-29992,-29995,-29996,-29996,-29996,-29997]} 1. d4 {[%emt 0:00:10]} d5 {[%emt 0:00:11]} 2. c4 {[%emt 0:00:13]} c6 {[%emt 0:00:12]} 3. Nc3 {[%emt 0:00:18]} Nf6 {[%emt 0:00:29]} 4. Nf3 {[%emt 0:00:30]} dxc4 {[%emt 0:01:06]} 5. a4 {[%emt 0:00:35]} Bf5 {[%emt 0:00:34]} 6. e3 {[%emt 0:00:45]} e6 {[%emt 0:01:26]} 7. Bxc4 {[%emt 0:00:41]} Bb4 {[%emt 0:02:22]} 8. O-O {[%emt 0:00:30] LiveBook: 4130 Games} Nbd7 {[%emt 0:01:06]} 9. Bd3 {[%emt 0:05:39]} Bg6 {[%emt 0:03:33] D18: Slav Defence: 5 a4 Bf5 6 e3} (9... Bxd3 10. Qxd3 O-O 11. Rd1 Qa5 12. e4 h6 13. Bf4 Rfd8 14. Qc2 Rac8 15. h3 Qh5 16. Ne5 c5 17. Nxd7 Rxd7 18. Na2 Ba5 19. Be5 Rc6 {0-1 (32) Wojtkiewicz,A (2568)-Shirov,A (2706) Liepaja 2001}) 10. Ne2 $146 {[%emt 0:03:56]} O-O {[%emt 0:01:52]} 11. Nf4 {[%emt 0:02:55]} c5 {[%emt 0:01:24]} 12. Nxg6 {[%emt 0:06:27]} hxg6 {[%emt 0:00:07]} 13. Bd2 {[%emt 0:00:18]} Bxd2 {[%emt 0:02:30]} 14. Qxd2 {[%emt 0:00:13]} cxd4 {[%emt 0:00:25]} 15. Nxd4 {[%emt 0:00:15]} e5 {[%emt 0:00:33]} 16. Nb3 {[%emt 0:01:23]} Qb6 {[%emt 0:01:21]} 17. Nc1 {[%emt 0:04:38]} Rfd8 {[%emt 0:03:04]} 18. Qe2 {[%emt 0:01:42]} e4 {[%emt 0:01:17]} 19. Bc4 {[%emt 0:03:48]} Ne5 {[%emt 0:01:02]} 20. Ba2 {[%emt 0:06:17]} Qd6 {[%emt 0:13:04]} 21. Nb3 {[%emt 0:11:49]} Nfg4 {[%emt 0:01:24]} 22. g3 {[%emt 0:02:46]} Nf3+ {[%emt 0:01:00]} 23. Kg2 {[%emt 0:01:22]} Ngxh2 {[%emt 0:03:08]} 24. Rfd1 {[%emt 0:00:22]} Qe5 {[%emt 0:09:58]} 25. Rxd8+ $2 {[%emt 0:03:32]} (25. Rh1 $17) 25... Rxd8 {[%emt 0:01:03]} 26. Rd1 $2 {[%emt 0:02:21]} (26. Qc4) 26... Rxd1 {[%emt 0:03:15]} 27. Qxd1 {[%emt 0:00:19] [#]} Qxb2 $2 {[%emt 0:00:13]} (27... Qh5 $1 $19 28. Qc1 Ng5 29. Qc8+ Kh7) 28. Bb1 $2 {[%emt 0:01:05]} (28. Qd7 $1 $11) 28... Ng4 {[%emt 0:00:28]} 29. Bc2 {[%emt 0:02:31] [#]} Qxc2 $1 {[%emt 0:00:57]} 30. Qd8+ $2 {[%emt 0:02:44]} (30. Qxc2 Nxe3+ 31. fxe3 Ne1+ 32. Kf2 Nxc2 33. Nc5) 30... Kh7 {[%emt 0:00:08]} 31. Nd4 {[%emt 0:00:11]} Qxf2+ {[%emt 0:00:19]} 32. Kh3 {[%emt 0:00:05]} Ng1+ {[%emt 0:04:41]} 33. Kxg4 {[%emt 0:02:07]} f5+ {[%emt 0:00:21]} 34. Nxf5 {[%emt 0:01:40]} Qxf5+ {[%emt 0:00:18]} 35. Kh4 {[%emt 0:00:11]} Nf3# 0-1

[Event "NOR-ch Clubs 2017"]
[Site "Kristiansund"]
[Date "2017.10.20"]
[Round "1"]
[White "Refsnes, Stale"]
[Black "Dahl, Torbjorn"]
[Result "0-1"]
[ECO "B02"]
[WhiteElo "1444"]
[BlackElo "1974"]
[Annotator "NA RC"]
[PlyCount "110"]
[EventDate "2017.??.??"]
[EventType "team-tourn"]
[EventCountry "NOR"]
[SourceTitle "playchess.com"]
[Source "ChessBase"]
[SourceQuality "1"]
[TimeControl "40/5400:1800"]

1. e4 {[%emt 0:00:10]} Nf6 {[%emt 0:00:12]} 2. Nc3 {[%emt 0:00:34]} d5 {[%emt 0:00:07]} 3. exd5 {[%emt 0:01:32]} Nxd5 {[%emt 0:00:09]} 4. Nxd5 {[%emt 0:01:23]} Qxd5 {[%emt 0:00:07]} 5. Qf3 {[%emt 0:05:25]} Qxf3 {[%emt 0:07:56]} 6. Nxf3 {[%emt 0:00:09]} Nc6 {[%emt 0:01:41] B02: Aljechin-Verteidigung (Jagdvariante)} 7. Bb5 {[%emt 0:04:11]} Bd7 {[%emt 0:03:22]} 8. c3 {[%emt 0:00:43]} a6 {[%emt 0:12:02]} 9. Ba4 {[%emt 0:00:39]} e5 {[%emt 0:05:09]} 10. O-O {[%emt 0:00:56]} f6 $146 {[%emt 0:02:57]} ({Vorgänger:} 10... b5 11. Bb3 Bd6 12. Bd5 O-O 13. a4 Rae8 14. axb5 axb5 {½-½ (70) Schwab,R (2290)-Rumpl,E (2165) Austria 1995}) 11. Re1 {[%emt 0:02:52]} O-O-O {[%emt 0:02:13]} 12. d4 {[%emt 0:01:39]} exd4 {[%emt 0:01:09]} 13. Bxc6 {[%emt 0:06:59]} Bxc6 {[%emt 0:01:03]} 14. Nxd4 {[%emt 0:00:06]} Bd5 {[%emt 0:01:46]} 15. Bf4 {[%emt 0:01:02]} g5 {[%emt 0:02:14]} 16. Bg3 {[%emt 0:01:27]} h5 {[%emt 0:00:19]} 17. h3 {[%emt 0:00:27]} h4 {[%emt 0:01:09]} 18. Bh2 {[%emt 0:00:05]} g4 {[%emt 0:07:46]} 19. hxg4 {[%emt 0:04:59]} h3 {[%emt 0:02:02]} 20. f3 {[%emt 0:01:53]} Bc5 {[%emt 0:04:15]} 21. Kh1 {[%emt 0:03:53]} (21. Bg3 $11 {remains equal.}) 21... hxg2+ {[%emt 0:00:20]} 22. Kxg2 {[%emt 0:00:53]} Bxd4 {[%emt 0:02:28]} 23. cxd4 {[%emt 0:01:23] [#]} Bxf3+ $1 {[%emt 0:01:06]} 24. Kxf3 {[%emt 0:00:28]} Rxh2 {[%emt 0:00:24]} 25. Re4 {[%emt 0:05:20]} Rxb2 {[%emt 0:00:53]} 26. Rf4 {[%emt 0:00:12]} Rd6 {[%emt 0:03:13]} 27. a4 {[%emt 0:07:25]} Rb4 {[%emt 0:02:34]} 28. Ke3 {[%emt 0:05:24]} Kd7 {[%emt 0:01:39]} (28... a5 $19 29. Ra3 b6) 29. Ra3 {[%emt 0:05:24]} (29. a5 $17) 29... Re6+ {[%emt 0:03:19]} 30. Kd3 {[%emt 0:02:23]} Ke7 {[%emt 0:01:29]} 31. Rc3 {[%emt 0:03:50]} c6 {[%emt 0:02:26]} 32. Ra3 $2 {[%emt 0:01:12]} (32. a5 $17) 32... Re1 {[%emt 0:02:35]} 33. Kd2 {[%emt 0:04:49]} Re6 {[%emt 0:04:05]} (33... Rg1 $17 34. Re3+ Kd7) 34. Kd3 {[%emt 0:00:24]} c5 {[%emt 0:01:40]} 35. Rc3 {[%emt 0:02:53] [#]} Rxa4 {[%emt 0:01:37]} (35... cxd4 $1 $17 36. Rc4 Rxc4 37. Kxc4 Rd6) 36. Rxc5 {[%emt 0:00:15]} b5 {[%emt 0:00:42]} 37. Rff5 {[%emt 0:01:38]} (37. Rc7+ $15 Ke8 38. Ra7) 37... Rd6 {[%emt 0:00:25]} 38. Rcd5 {[%emt 0:01:38]} (38. Rf4 $15) 38... Ra3+ {[%emt 0:00:20]} 39. Kc2 {[%emt 0:00:22]} Rxd5 {[%emt 0:00:07]} 40. Rxd5 {[%emt 0:00:07]} Rg3 {[%emt 0:30:13]} 41. Kb2 {[%emt 0:31:47]} Rxg4 {[%emt 0:00:22]} 42. Kb3 {[%emt 0:00:05]} Ke6 {[%emt 0:00:00]} 43. Rd8 {[%emt 0:00:00]} a5 {[%emt 0:00:00]} 44. d5+ {[%emt 0:00:00]} Ke7 {[%emt 0:00:00]} 45. Rb8 {[%emt 0:00:00]} Rg3+ {[%emt 0:00:00]} 46. Kc2 {[%emt 0:00:00]} b4 {[%emt 0:00:00]} 47. Rb5 {[%emt 0:00:00] [#]} b3+ $19 {[%emt 0:00:00]} 48. Kb2 {[%emt 0:00:00]} a4 {[%emt 0:00:00]} 49. Ka3 {[%emt 0:00:00]} Rg4 {[%emt 0:00:00]} 50. Rb6 {[%emt 0:00:00]} f5 {[%emt 0:00:00]} 51. Re6+ {[%emt 0:00:00]} Kf7 {[%emt 0:00:00]} 52. Re1 {[%emt 0:00:00]} Rd4 {[%emt 0:00:00]} 53. Re5 {[%emt 0:00:00]} f4 {[%emt 0:00:00]} 54. d6 {[%emt 0:00:00]} Rxd6 {[%emt 0:00:00]} 55. Kxa4 {[%emt 0:00:00]} Rb6 {[%emt 0:00:00]} 0-1

[Event "NOR-ch Clubs 2017"]
[Site "Kristiansund"]
[Date "2017.10.21"]
[Round "2"]
[White "Lobersli, Henrik Oie"]
[Black "Nesse, David"]
[Result "1-0"]
[ECO "A40"]
[WhiteElo "2047"]
[BlackElo "1700"]
[Annotator "NA RC"]
[PlyCount "91"]
[EventDate "2017.??.??"]
[EventType "team-tourn"]
[EventCountry "NOR"]
[SourceTitle "playchess.com"]
[Source "ChessBase"]
[SourceQuality "1"]
[TimeControl "40/5400:1800"]

{[%evp 8,86,21,6,33,-2,-7,7,0,-41,54,-22,-21,-25,-21,-33,-21,-16,-12,-65,-48,-41,0,10,23,32767,77,32767,32767,32767,32767,34,141,39,1172,136,152,158,166,32767,32767,32767,32767,32767,366,377,472,514,651,32767,368,357,382,351,610,655,686,592,529,608,677,32767,32767,32767,915,1076,954,1140,1118,1689,32767,32767,32767,32767,1085,3015,29988,29989,29989,29990,29996]} 1. d4 {[%emt 0:00:05]} g6 {[%emt 0:00:13]} 2. Bf4 {[%emt 0:02:26]} Bg7 {[%emt 0:00:48]} 3. Nc3 {[%emt 0:01:17]} c5 {[%emt 0:02:13]} 4. e3 {[%emt 0:03:22]} cxd4 {[%emt 0:04:21]} 5. exd4 {[%emt 0:00:08]} Qb6 {[%emt 0:01:05]} 6. Nb5 {[%emt 0:09:50]} d6 {[%emt 0:01:29]} 7. Qe2 {[%emt 0:16:33]} Be6 {[%emt 0:15:32]} 8. c3 {[%emt 0:03:55]} (8. Be3 $5 {[%cal Rd4d5]} Qd8 9. Nf3 $11) 8... a6 {[%emt 0:09:18]} ({Black should try} 8... Nf6 $15) 9. Na3 {[%emt 0:14:18]} (9. Nxd6+ $16 exd6 10. d5) 9... Nf6 {[%emt 0:14:25]} 10. Nf3 {[%emt 0:02:15]} O-O {[%emt 0:01:37]} 11. g3 {[%emt 0:02:05]} Nc6 {[%emt 0:02:15]} 12. Bg2 {[%emt 0:01:01]} Nd5 {[%emt 0:03:22]} 13. Be3 {[%emt 0:01:30]} ({Better is} 13. Bc1 $11) 13... Nxe3 {[%emt 0:05:23]} 14. fxe3 {[%emt 0:00:07]} d5 {[%emt 0:00:26]} 15. Ng5 {[%emt 0:03:42]} Bf5 {[%emt 0:08:12]} 16. Bxd5 {[%emt 0:11:10]} Bh6 {[%emt 0:02:16]} 17. h4 {[%emt 0:04:09]} e6 {[%emt 0:00:33]} 18. Bb3 {[%emt 0:00:50]} Na5 {[%emt 0:01:15]} 19. Nc4 {[%emt 0:03:55]} (19. e4 $16) 19... Qc6 {[%emt 0:00:56] [#]} (19... Nxc4 $14 20. Bxc4 Rae8) 20. O-O-O {[%emt 0:01:56]} ({Der einzige Zug:} 20. d5 $1 $18 {[%cal Rd5c6]} exd5 21. Nxa5) 20... Nxb3+ $4 {[%emt 0:01:15]} (20... Qb5 $11) 21. axb3 {[%emt 0:00:01]} Bxg5 {[%emt 0:00:55]} 22. hxg5 {[%emt 0:00:02]} Qe4 {[%emt 0:00:16]} 23. Rh4 {[%emt 0:02:27]} Qb1+ {[%emt 0:01:09]} 24. Kd2 Qc2+ {[%emt 0:00:03]} 25. Ke1 {[%emt 0:00:01]} Qxb3 $2 {[%emt 0:00:31]} (25... h6 {keeps fighting.}) 26. e4 {[%emt 0:00:10]} b5 {[%emt 0:00:58]} 27. Ne5 {[%emt 0:00:02]} ({Not} 27. exf5 Qxc4 28. fxg6 fxg6 $11) 27... b4 {[%emt 0:00:52]} 28. Rc1 {[%emt 0:00:39]} bxc3 {[%emt 0:01:16]} 29. bxc3 {[%emt 0:00:19]} Qa3 {[%emt 0:00:32]} 30. Qd2 {[%emt 0:00:10]} Rab8 {[%emt 0:01:00]} (30... f6 $142) 31. Nd7 {[%emt 0:00:01]} Rfd8 {[%emt 0:01:00]} 32. Nxb8 {[%emt 0:00:07]} ({Weaker is} 32. exf5 Rxd7 33. fxe6 fxe6 $15) 32... Rxb8 {[%emt 0:00:04]} 33. exf5 {[%emt 0:00:18]} exf5 {[%emt 0:00:13]} 34. Rh2 {[%emt 0:00:08]} Qd6 {[%emt 0:00:13]} 35. Qf4 {[%emt 0:00:12]} Qe6+ {[%emt 0:00:21]} 36. Re2 {[%emt 0:00:02]} Qb3 {[%emt 0:00:10]} 37. Kf2 {[%emt 0:00:05]} Rc8 {[%emt 0:00:20]} 38. Rce1 {[%emt 0:00:14]} Qb5 {[%emt 0:00:18]} 39. Re3 {[%emt 0:00:08]} a5 {[%emt 0:00:14]} 40. Qe5 {[%emt 0:00:07]} Qb2+ {[%emt 0:30:52]} 41. R1e2 {[%emt 0:30:09]} Qa1 {[%emt 0:00:35]} 42. Qb5 {[%emt 0:00:00]} Rf8 {[%emt 0:00:00]} 43. Re8 {[%emt 0:00:00]} Qh1 {[%emt 0:00:00]} 44. Rxf8+ {[%emt 0:00:00]} Kg7 {[%emt 0:00:00]} 45. Qe5+ {[%emt 0:00:00]} Kxf8 {[%emt 0:00:00]} 46. Qh8# 1-0

[Event "NOR-ch Clubs 2017"]
[Site "Kristiansund"]
[Date "2017.10.21"]
[Round "2"]
[White "Simensen, Vegard"]
[Black "Shehzad, Alisha"]
[Result "1-0"]
[ECO "D02"]
[WhiteElo "1969"]
[BlackElo "1533"]
[Annotator "NA RC"]
[PlyCount "73"]
[EventDate "2017.??.??"]
[EventType "team-tourn"]
[EventCountry "NOR"]
[SourceTitle "playchess.com"]
[Source "ChessBase"]
[SourceQuality "1"]
[TimeControl "40/5400:1800"]

{[%evp 8,55,44,28,45,9,3,14,27,25,16,17,22,11,26,0,22,0,15,37,22,29,33,14,0,2,0,8,-9,-1,29,32767,32767,32767,32767,32767,32767,95,123,96,81,32767,543,597,32767,815,689,32767,875,400]} 1. d4 {[%emt 0:00:19]} d5 {[%emt 0:00:05]} 2. Nf3 {[%emt 0:00:49]} Nf6 {[%emt 0:00:11]} 3. c4 {[%emt 0:01:22]} c6 {[%emt 0:00:14]} 4. Nc3 {[%emt 0:02:57]} h6 {[%emt 0:02:06]} 5. e3 {[%emt 0:02:32]} e6 {[%emt 0:00:38] D15: Slav Defence: 4 Nc3 a6 and gambit lines after 4 Nc3 dxc4} 6. Qc2 {[%emt 0:03:00]} Nbd7 {[%emt 0:00:49] LiveBook: 19 Games} 7. Bd3 {[%emt 0:02:48]} dxc4 {[%emt 0:00:37]} 8. Bxc4 {[%emt 0:00:20]} b5 {[%emt 0:00:26]} 9. Bd3 {[%emt 0:03:03]} Bb7 {[%emt 0:00:38]} 10. O-O {[%emt 0:01:24]} a6 {[%emt 0:01:17]} 11. Ne4 $146 {[%emt 0:08:59]} ({Predecessor:} 11. e4 c5 12. d5 c4 13. Be2 exd5 14. e5 {0-1 (26) Rohde,M (2506)-Ehlvest,J (2631) Philadelphia 2004}) 11... Rc8 {[%emt 0:08:03]} 12. Rd1 {[%emt 0:13:13]} Nxe4 {[%emt 0:09:44]} 13. Bxe4 {[%emt 0:00:48]} Nf6 {[%emt 0:02:53]} 14. Bd3 {[%emt 0:02:25]} Qb6 {[%emt 0:06:57]} 15. Qe2 {[%emt 0:09:14]} c5 {[%emt 0:07:02]} 16. a4 {[%emt 0:05:43]} c4 {[%emt 0:05:32]} 17. Bc2 {[%emt 0:00:56]} Be7 {[%emt 0:08:17]} 18. Ne5 {[%emt 0:04:06]} h5 {[%emt 0:17:40]} 19. axb5 {[%emt 0:03:12]} axb5 {[%emt 0:00:32]} 20. Bd2 {[%emt 0:01:36]} h4 {[%emt 0:02:28]} 21. h3 {[%emt 0:02:09]} Ba8 {[%emt 0:05:05]} 22. f3 {[%emt 0:06:22]} Nh5 {[%emt 0:00:44]} 23. Be1 {[%emt 0:01:11]} Ng3 {[%emt 0:03:16]} 24. Qd2 {[%emt 0:01:24]} b4 $2 {[%emt 0:01:17]} (24... Nf5 $16 {is tougher.}) 25. Ba4+ {[%emt 0:01:36]} Bc6 {[%emt 0:01:35]} 26. Bxc6+ {[%emt 0:01:41]} Rxc6 {[%emt 0:00:03]} 27. Ra8+ {[%emt 0:00:35]} Bd8 {[%emt 0:00:37]} 28. Nxc6 $18 {[%emt 0:00:44]} Qxc6 {[%emt 0:00:07]} 29. Rda1 {[%emt 0:01:00]} Qb7 {[%emt 0:00:24]} 30. Qxb4 {[%emt 0:00:35]} Qxb4 31. Bxb4 {[%emt 0:00:08]} Kd7 {[%emt 0:00:11]} 32. R1a7+ {[%emt 0:00:38]} Kc6 33. Ba5 {[%emt 0:00:34]} Rh6 {[%emt 0:00:24]} 34. Rxd8 {[%emt 0:00:15]} Rg6 {[%emt 0:00:00]} 35. Rc7+ {[%emt 0:00:33]} Kb5 {[%emt 0:00:02]} 36. Rb8+ {[%emt 0:00:00]} Kxa5 {[%emt 0:00:02]} 37. Ra7# {[%emt 0:00:41]} 1-0

[Event "NOR-ch Clubs 2017"]
[Site "Kristiansund"]
[Date "2017.10.21"]
[Round "2"]
[White "Eliseev, Sergey"]
[Black "Darnell, Anton"]
[Result "0-1"]
[ECO "C00"]
[WhiteElo "1570"]
[BlackElo "2078"]
[Annotator "NA RC"]
[PlyCount "40"]
[EventDate "2017.??.??"]
[EventType "team-tourn"]
[EventCountry "NOR"]
[SourceTitle "playchess.com"]
[Source "ChessBase"]
[SourceQuality "1"]
[TimeControl "40/5400:1800"]

{[%evp 8,40,-3,-3,1,-18,-7,-25,-10,-39,-27,-31,-24,-57,0,-38,0,-77,-26,-81,-87,-93,-82,-125,-111,-215,-167,-209,-184,-261,-203,-353,-364,-387,-410]} 1. e4 {[%emt 0:00:02]} e6 {[%emt 0:00:29]} 2. d3 {[%emt 0:00:07]} c5 {[%emt 0:01:09]} 3. Nf3 {[%emt 0:00:21]} d5 {[%emt 0:00:52]} 4. Qe2 {[%emt 0:00:07]} Nf6 {[%emt 0:06:31]} 5. g3 {[%emt 0:00:07]} Nc6 {[%emt 0:00:28]} 6. Bg2 {[%emt 0:00:08]} Be7 {[%emt 0:00:28] LiveBook: 717 Games} 7. e5 {[%emt 0:00:33] C00: French: Unusual White 2nd moves} (7. O-O b5 8. exd5 exd5 9. d4 c4 10. Be3 Bg4 11. h3 Bxf3 12. Qxf3 Qb6 13. Nc3 Rd8 14. g4 b4 15. Ne2 h5 {1-0 (32) McShane,L (2674)-Caruana,F (2796) Las Vegas 2015}) 7... Nd7 {[%emt 0:00:29]} 8. h4 {[%emt 0:00:50]} Qc7 {[%emt 0:02:39]} 9. Bf4 $1 {[%emt 0:00:11]} b5 {[%emt 0:00:44]} 10. b3 $146 {[%emt 0:01:15]} ({Predecessor:} 10. c3 a5 11. O-O Ba6 12. Re1 h6 {½-½ (34) Cherniaev,A (2491)-Macak,S (2361) Sunningdale 2008}) 10... a5 {[%emt 0:04:00]} 11. O-O {[%emt 0:01:24]} O-O {[%emt 0:00:38]} 12. Nbd2 {[%emt 0:01:18]} (12. c4 $11 dxc4 13. dxc4) 12... Bb7 {[%emt 0:03:31]} 13. Rfe1 {[%emt 0:04:02]} (13. c4 $11 bxc4 14. bxc4) 13... a4 {[%emt 0:03:54]} 14. c4 {[%emt 0:09:52]} Nb4 {[%emt 0:09:01]} 15. Rec1 {[%emt 0:03:13]} axb3 {[%emt 0:02:13]} 16. Nxb3 {[%emt 0:06:29]} (16. axb3 $17 Na2 17. Re1) 16... bxc4 {[%emt 0:02:38]} 17. dxc4 {[%emt 0:00:22]} dxc4 {[%emt 0:04:01]} 18. Qxc4 {[%emt 0:06:51]} (18. Nbd2 $142) 18... Nxa2 {[%emt 0:02:02]} 19. Rc2 {[%emt 0:00:20]} (19. Rcb1 $142) 19... Bd5 {[%emt 0:00:32]} 20. Qb5 {[%emt 0:07:43]} Rfb8 $19 {[%emt 0:02:07]} 0-1